fUSD/lending_fUSD_20260529
["ID","MTS","AMOUNT","RATE_DAILY","PERIOD"]
[423380948,1780068748000,-769.613798,0.00039346,30]
[423380947,1780068748000,-1823.19742,0.00039346,30]
[423380950,1780068748000,-317.16506,0.00039346,30]
[423380949,1780068748000,-769.613806,0.00039346,30]
[423380951,1780068748000,-317.16506,0.00039346,30]
[423380941,1780068748000,-1922.173289,0.00039346,30]
[423380957,1780068749000,-317.16506,0.00039346,30]
[423380958,1780068749000,-317.16506,0.00039346,30]
[423380956,1780068749000,-317.16506,0.00039346,30]
[423380952,1780068749000,-317.16506,0.00039346,30]
[423380954,1780068749000,-317.16506,0.00039346,30]
[423380953,1780068749000,-317.16506,0.00039346,30]
[423380960,1780068749000,-317.16506,0.00039346,30]
[423380955,1780068749000,-317.16506,0.00039346,30]
[423380959,1780068749000,-317.16506,0.00039346,30]
[423380963,1780068749000,-317.16506,0.00039346,30]
[423380962,1780068749000,-317.16506,0.00039346,30]
[423380964,1780068749000,-317.16506,0.00039346,30]
[423380965,1780068749000,-362.34337036,0.00039999,31]
[423380966,1780068749000,-215.5484138,0.0004,30]
[423380968,1780068749000,-1126.12,0.00040135,30]
[423380967,1780068749000,-555.49,0.00040094,30]
[423380970,1780068749000,-161.0,0.00040346,120]
[423380969,1780068749000,-200.0,0.00040346,120]
[423380961,1780068749000,-317.16506,0.00039346,30]
[423380977,1780068750000,-500.0,0.00041095,120]
[423380976,1780068750000,-177.40655856,0.00041095,120]
[423380975,1780068750000,-500.0,0.00041095,120]
[423380979,1780068750000,-500.0,0.00041095,120]
[423380973,1780068750000,-500.0,0.00041095,120]
[423380972,1780068750000,-500.0,0.00041095,120]
[423380971,1780068750000,-500.0,0.00041095,120]
[423380974,1780068750000,-500.0,0.00041095,120]
[423380978,1780068750000,-196.32419753,0.00041095,120]
[423380986,1780068750000,-500.0,0.00041095,120]
[423380980,1780068750000,-500.0,0.00041095,120]
[423380990,1780068750000,-594.39224538,0.00041095,120]
[423380989,1780068750000,-198.70323145,0.00041095,120]
[423380988,1780068750000,-561.07259839,0.00041095,120]
[423380987,1780068750000,-500.0,0.00041095,120]
[423380981,1780068750000,-596.25,0.00041095,120]
[423380984,1780068750000,-500.0,0.00041095,120]
[423380983,1780068750000,-512.94719947,0.00041095,120]
[423380982,1780068750000,-500.0,0.00041095,120]
[423380985,1780068750000,-500.0,0.00041095,120]
[423380998,1780068751000,-532.9914059,0.00041095,120]
[423380991,1780068751000,-512.13880721,0.00041095,120]
[423380992,1780068751000,-563.93640392,0.00041095,120]
[423380993,1780068751000,-500.0,0.00041095,120]
[423380994,1780068751000,-341.21402188,0.00041095,120]
[423380995,1780068751000,-1053.29,0.00041095,120]
[423380996,1780068751000,-545.9288094,0.00041095,120]
[423380997,1780068751000,-557.9384773,0.00041095,120]
[423380999,1780068751000,-531.81912834,0.00041095,120]
[423381000,1780068751000,-345.9625668,0.00041095,120]
[423381001,1780068751000,-500.0,0.00041095,120]
[423381008,1780068751000,-528.94693488,0.00041178,120]
[423381009,1780068751000,-1053.29,0.00041178,120]
[423381007,1780068751000,-500.0,0.00041178,120]
[423381006,1780068751000,-500.0,0.00041178,120]
[423381010,1780068751000,-576.12960199,0.00041178,120]
[423381002,1780068751000,-161.3467212,0.00041095,120]
[423381003,1780068751000,-568.47014052,0.00041095,120]
[423381004,1780068751000,-1020.0,0.00041096,60]
[423381005,1780068751000,-596.25,0.00041178,120]
[423381019,1780068752000,-1053.29,0.00041342,120]
[423381013,1780068752000,-596.25,0.0004126,120]
[423381012,1780068752000,-152.0,0.00041234,120]
[423381014,1780068752000,-500.0,0.0004126,120]
[423381015,1780068752000,-162.97956388,0.0004126,120]
[423381017,1780068752000,-596.25,0.00041342,120]
[423381016,1780068752000,-1053.29,0.0004126,120]
[423381018,1780068752000,-500.0,0.00041342,120]
[423381020,1780068752000,-500.0,0.00041342,120]
[423381011,1780068752000,-167.07141607,0.000412,30]
[423381023,1780068752000,-500.0,0.00041369,120]
[423381028,1780068752000,-500.0,0.00041369,120]
[423381030,1780068752000,-500.0,0.00041369,120]
[423381029,1780068752000,-500.0,0.00041369,120]
[423381026,1780068752000,-500.0,0.00041369,120]
[423381021,1780068752000,-200.0,0.00041346,120]
[423381025,1780068752000,-500.0,0.00041369,120]
[423381024,1780068752000,-500.0,0.00041369,120]
[423381022,1780068752000,-161.0,0.00041346,120]
[423381027,1780068752000,-419.92,0.00041369,120]
[423381039,1780068753000,-596.25,0.00041589,120]
[423381031,1780068753000,-596.25,0.00041424,120]
[423381032,1780068753000,-500.0,0.00041424,120]
[423381033,1780068753000,-1053.29,0.00041424,120]
[423381035,1780068753000,-157.69,0.00041432,30]
[423381034,1780068753000,-345.9625668,0.00041424,120]
[423381037,1780068753000,-500.0,0.00041506,120]
[423381036,1780068753000,-596.25,0.00041506,120]
[423381038,1780068753000,-1053.29,0.00041506,120]
[423381041,1780068753000,-1053.29,0.00041589,120]
[423381040,1780068753000,-500.0,0.00041589,120]
[423381049,1780068753000,-596.25,0.00041671,120]
[423381047,1780068753000,-500.0,0.00041643,120]
[423381046,1780068753000,-500.0,0.00041643,120]
[423381048,1780068753000,-500.0,0.00041643,120]
[423381044,1780068753000,-500.0,0.00041643,120]
[423381043,1780068753000,-500.0,0.00041643,120]
[423381042,1780068753000,-500.0,0.00041643,120]
[423381045,1780068753000,-500.0,0.00041643,120]
[423381058,1780068754000,-509.70580374,0.00041917,120]
[423381050,1780068754000,-500.0,0.00041671,120]
[423381053,1780068754000,-500.0,0.00041753,120]
[423381055,1780068754000,-596.25,0.00041835,120]
[423381052,1780068754000,-596.25,0.00041753,120]
[423381051,1780068754000,-1053.29,0.00041671,120]
[423381054,1780068754000,-1053.29,0.00041753,120]
[423381056,1780068754000,-500.0,0.00041835,120]
[423381057,1780068754000,-1053.29,0.00041835,120]
[423381069,1780068754000,-800.0,0.00042,45]
[423381061,1780068754000,-512.89195753,0.00041917,120]
[423381059,1780068754000,-500.0,0.00041917,120]
[423381065,1780068754000,-596.25,0.00041917,120]
[423381066,1780068754000,-500.0,0.00041917,120]
[423381067,1780068754000,-1053.29,0.00041917,120]
[423381068,1780068754000,-300.0,0.00042,120]
[423381060,1780068754000,-500.0,0.00041917,120]
[423381063,1780068754000,-500.0,0.00041917,120]
[423381062,1780068754000,-500.0,0.00041917,120]
[423381064,1780068754000,-500.0,0.00041917,120]
[423381070,1780068755000,-500.0,0.00042,120]
[423381072,1780068755000,-150.0,0.00042,120]
[423381075,1780068755000,-1053.29,0.00042,120]
[423381078,1780068755000,-1053.29,0.00042082,120]
[423381081,1780068755000,-1053.29,0.00042164,120]
[423381079,1780068755000,-596.25,0.00042164,120]
[423381077,1780068755000,-500.0,0.00042082,120]
[423381076,1780068755000,-596.25,0.00042082,120]
[423381080,1780068755000,-500.0,0.00042164,120]
[423381082,1780068755000,-500.0,0.00042191,120]
[423381086,1780068755000,-500.0,0.00042191,120]
[423381087,1780068755000,-1112.16761541,0.000422,30]
[423381085,1780068755000,-500.0,0.00042191,120]
[423381073,1780068755000,-596.25,0.00042,120]
[423381083,1780068755000,-500.0,0.00042191,120]
[423381074,1780068755000,-500.0,0.00042,120]
[423381071,1780068755000,-721.529,0.00042,120]
[423381084,1780068755000,-500.0,0.00042191,120]
[423381096,1780068756000,-596.25,0.0004241,120]
[423381091,1780068756000,-596.25,0.00042328,120]
[423381089,1780068756000,-500.0,0.00042246,120]
[423381095,1780068756000,-162.0,0.00042346,120]
[423381090,1780068756000,-1053.29,0.00042246,120]
[423381093,1780068756000,-1053.29,0.00042328,120]
[423381097,1780068756000,-500.0,0.0004241,120]
[423381101,1780068756000,-500.0,0.00042465,120]
[423381098,1780068756000,-1053.29,0.0004241,120]
[423381100,1780068756000,-500.0,0.00042465,120]
[423381088,1780068756000,-596.25,0.00042246,120]
[423381104,1780068756000,-596.25,0.00042493,120]
[423381105,1780068756000,-311.61774774,0.00042493,120]
[423381107,1780068756000,-800.0,0.000425,45]
[423381102,1780068756000,-500.0,0.00042465,120]
[423381106,1780068756000,-1053.29,0.00042493,120]
[423381099,1780068756000,-500.0,0.00042465,120]
[423381092,1780068756000,-500.0,0.00042328,120]
[423381094,1780068756000,-200.0,0.00042346,120]
[423381103,1780068756000,-500.0,0.00042465,120]
[423381115,1780068757000,-500.0,0.00042739,120]
[423381122,1780068757000,-1053.29,0.00042821,120]
[423381126,1780068757000,-1053.3332921,0.00042986,120]
[423381118,1780068757000,-500.0,0.00042739,120]
[423381108,1780068757000,-500.0,0.000425,30]
[423381109,1780068757000,-500.0,0.000425,120]
[423381111,1780068757000,-1053.29,0.00042575,120]
[423381110,1780068757000,-596.25,0.00042575,120]
[423381124,1780068757000,-1053.29,0.00042904,120]
[423381123,1780068757000,-596.25,0.00042904,120]
[423381114,1780068757000,-500.0,0.00042739,120]
[423381120,1780068757000,-1053.29,0.00042739,120]
[423381113,1780068757000,-1053.29,0.00042657,120]
[423381112,1780068757000,-596.25,0.00042657,120]
[423381125,1780068757000,-596.34773204,0.00042986,120]
[423381117,1780068757000,-500.0,0.00042739,120]
[423381116,1780068757000,-500.0,0.00042739,120]
[423381121,1780068757000,-596.25,0.00042821,120]
[423381119,1780068757000,-596.25,0.00042739,120]
[423381134,1780068758000,-151.0,0.00042999,120]
[423381133,1780068758000,-500.0,0.00042999,120]
[423381129,1780068758000,-2270.93149805,0.00042999,120]
[423381130,1780068758000,-151.0,0.00042999,120]
[423381132,1780068758000,-151.0,0.00042999,120]
[423381131,1780068758000,-151.0,0.00042999,120]
[423381127,1780068758000,-3000.0,0.00042999,120]
[423381128,1780068758000,-3000.0,0.00042999,120]
[423381144,1780068758000,-151.0,0.00042999,120]
[423381135,1780068758000,-500.0,0.00042999,120]
[423381140,1780068758000,-151.0,0.00042999,120]
[423381143,1780068758000,-500.0,0.00042999,120]
[423381136,1780068758000,-151.0,0.00042999,120]
[423381145,1780068758000,-500.0,0.00042999,120]
[423381138,1780068758000,-151.0,0.00042999,120]
[423381137,1780068758000,-500.0,0.00042999,120]
[423381142,1780068758000,-151.0,0.00042999,120]
[423381146,1780068758000,-151.0,0.00042999,120]
[423381141,1780068758000,-500.0,0.00042999,120]
[423381139,1780068758000,-500.0,0.00042999,120]
[423381156,1780068759000,-7998150.26831219,0.00043,120]
[423381152,1780068759000,-500.0,0.00042999,120]
[423381151,1780068759000,-151.0,0.00042999,120]
[423381162,1780068759000,-7257.0,0.00043,120]
[423381150,1780068759000,-500.0,0.00042999,120]
[423381158,1780068759000,-79472.33888332,0.00043,120]
[423381147,1780068759000,-151.0,0.00042999,120]
[423381164,1780068759000,-8878.0,0.00043,120]
[423381163,1780068759000,-1177.0,0.00043,120]
[423381148,1780068759000,-500.0,0.00042999,120]
[423381160,1780068759000,-1000.0,0.00043,30]
[423381159,1780068759000,-1499.957926,0.00043,120]
[423381153,1780068759000,-151.0,0.00042999,120]
[423381154,1780068759000,-500.0,0.00042999,120]
[423381155,1780068759000,-500.0,0.00042999,120]
[423381161,1780068759000,-1621.0,0.00043,120]
[423381157,1780068759000,-500.0,0.00043,120]
[423381149,1780068759000,-151.0,0.00042999,120]
[423381166,1780068760000,-3556.0,0.00043,120]
[423381169,1780068760000,-6984.60284529,0.00043,120]
[423381167,1780068760000,-3111.0,0.00043,120]
[423381165,1780068760000,-5462.0,0.00043,120]
[423381168,1780068760000,-7389.66107,0.00043,120]
[423381174,1780068760000,-1686.91,0.00043,120]
[423381173,1780068760000,-800.0,0.00043,45]
[423381175,1780068760000,-1561.82,0.00043,120]
[423381170,1780068760000,-6405.77174806,0.00043,120]
[423381177,1780068760000,-800.0,0.00043,45]
[423381176,1780068760000,-1462.67,0.00043,120]
[423381172,1780068760000,-800.0,0.00043,45]
[423381171,1780068760000,-800.0,0.00043,45]
[423381182,1780068761000,-500.0,0.00043,30]
[423381186,1780068761000,-500.0,0.00043013,100]
[423381192,1780068761000,-468.54054198,0.00043013,120]
[423381179,1780068761000,-163.90705742,0.00043,120]
[423381191,1780068761000,-237.05685892,0.00043013,120]
[423381190,1780068761000,-500.0,0.00043013,120]
[423381196,1780068761000,-150.0,0.00043018,120]
[423381197,1780068761000,-150.0,0.00043018,120]
[423381184,1780068761000,-500.0,0.00043,120]
[423381187,1780068761000,-2000.0,0.00043013,120]
[423381188,1780068761000,-1752.99566496,0.00043013,120]
[423381178,1780068761000,-163.90705742,0.00043,120]
[423381194,1780068761000,-1550.0,0.00043014,120]
[423381181,1780068761000,-163.90705741,0.00043,120]
[423381195,1780068761000,-213.77,0.00043014,120]
[423381185,1780068761000,-300.0,0.00043005,101]
[423381180,1780068761000,-163.90705741,0.00043,120]
[423381183,1780068761000,-500.0,0.00043,30]
[423381193,1780068761000,-291.04285088,0.00043013,120]
[423381189,1780068761000,-500.0,0.00043013,120]
[423381200,1780068762000,-500.0,0.00043068,120]
[423381205,1780068762000,-8860.76,0.00043105,30]
[423381214,1780068762000,-150.0,0.0004314,120]
[423381216,1780068762000,-151.0,0.00043178,60]
[423381213,1780068762000,-2888.85319391,0.00043138,120]
[423381211,1780068762000,-648.44306739,0.00043135,120]
[423381204,1780068762000,-339.74372,0.000431,120]
[423381217,1780068762000,-611234.34180818,0.0004318,120]
[423381199,1780068762000,-1124.0,0.0004305,30]
[423381198,1780068762000,-648.44306739,0.00043038,120]
[423381212,1780068762000,-2888.85319391,0.00043138,120]
[423381201,1780068762000,-500.0,0.00043068,120]
[423381203,1780068762000,-1677.0,0.000431,30]
[423381207,1780068762000,-7280.64,0.00043105,30]
[423381206,1780068762000,-8860.76,0.00043105,30]
[423381209,1780068762000,-300.0,0.00043111,103]
[423381215,1780068762000,-300.0,0.00043163,104]
[423381202,1780068762000,-648.44306739,0.00043086,120]
[423381208,1780068762000,-4853.76,0.00043105,30]
[423381210,1780068762000,-2000.0,0.00043115,120]
[423381218,1780068917000,-5.77853502,0.00010477,2]
[423381219,1780068935000,-187.01,0.00010388,2]
[423381220,1780068959000,-187.01,0.00010388,2]
[423381221,1780068974000,161.36175301,0.0001058,3]
[423381222,1780068992000,180.388869,0.0002702,120]
[423381223,1780069000000,150.0,0.00019366,120]
[423381225,1780069023000,685.24,0.00028082,120]
[423381226,1780069044000,685.25,0.00028082,120]
[423381227,1780069062000,-2369.497,0.00010388,2]
[423381228,1780069062000,-181.658,0.00010388,2]
[423381230,1780069062000,-250.0,0.00010433,2]
[423381231,1780069062000,-181.23146498,0.00010477,2]
[423381229,1780069062000,-209.09056759,0.00010388,2]
[423381233,1780069062000,-500.0,0.00010499,2]
[423381234,1780069062000,-500.0,0.00010499,2]
[423381232,1780069062000,-396.06480415,0.00010493,2]
[423381235,1780069062000,-185.1115839,0.00010499,2]
[423381237,1780069062000,-500.0,0.00010499,2]
[423381236,1780069062000,-500.0,0.00010499,2]
[423381239,1780069062000,-500.0,0.00010499,2]
[423381240,1780069062000,-500.0,0.00010499,2]
[423381238,1780069062000,-500.0,0.00010499,2]
[423381241,1780069062000,-447.5195856,0.00010499,2]
[423381255,1780069062000,-424282.34489188,0.000106,2]
[423381253,1780069062000,-535.14290575,0.000105,2]
[423381254,1780069062000,-155.29001587,0.00010599,2]
[423381252,1780069062000,-307.04918028,0.000105,2]
[423381250,1780069062000,-500.0,0.00010499,2]
[423381248,1780069062000,-500.0,0.00010499,2]
[423381242,1780069062000,-500.0,0.00010499,2]
[423381251,1780069062000,-500.0,0.00010499,2]
[423381247,1780069062000,-500.0,0.00010499,2]
[423381246,1780069062000,-500.0,0.00010499,2]
[423381245,1780069062000,-500.0,0.00010499,2]
[423381244,1780069062000,-500.0,0.00010499,2]
[423381243,1780069062000,-500.0,0.00010499,2]
[423381249,1780069062000,-500.0,0.00010499,2]
[423381256,1780069075000,900.0,0.000106,3]
[423381258,1780069077000,399.75575904,0.000107,3]
[423381257,1780069077000,1400.24424096,0.000107,3]
[423381259,1780069078000,1205.93592735,0.00010599,3]
[423381260,1780069079000,1205.93592735,0.00010599,3]
[423381261,1780069079000,1205.93592734,0.00010599,3]
[423381262,1780069080000,2700.0,0.000108,3]
[423381263,1780069102000,3600.0,0.000109,3]
[423381265,1780069120000,-250.0,0.00010312,2]
[423381267,1780069120000,-6127.15995176,0.000105,2]
[423381266,1780069120000,-3276.39308604,0.000105,2]
[423381264,1780069120000,-150.0,0.00010076,2]
[423381270,1780069120000,-181.64527902,0.00010547,2]
[423381268,1780069120000,-792.59471682,0.000105,2]
[423381272,1780069120000,-26488.20696636,0.00010575,2]
[423381271,1780069120000,-14584.0,0.00010575,2]
[423381269,1780069120000,-150.0,0.00010503,2]
[423381273,1780069140000,259.22,0.00028082,120]
[423381275,1780069141000,163.7,0.00022,120]
[423381274,1780069141000,220.01,0.00023,120]
[423381280,1780069171000,-142327.56168734,0.000106,2]
[423381279,1780069171000,-150.0,0.00010599,2]
[423381278,1780069171000,-19040.79303364,0.00010575,2]
[423381277,1780069171000,-300.0,0.00010574,2]
[423381276,1780069171000,-181.64527902,0.00010547,2]
[423381281,1780069187000,1600.0,0.000106,3]
[423381282,1780069189000,3300.0,0.000107,3]
[423381283,1780069191000,5000.0,0.000108,3]
[423381284,1780069193000,618.4535752,0.000109,3]
[423381285,1780069193000,6081.5464248,0.000109,3]
[423381286,1780069198000,1000.0,0.00028082,120]
[423381287,1780069255000,500.0,0.00028082,120]
[423381288,1780069282000,571.9019976,0.00028082,120]
[423381289,1780069285000,150.0,0.00028082,120]
[423381292,1780069425000,-150.0,0.00010281,2]
[423381293,1780069450000,1397.29,0.00028082,120]
[423381294,1780069458000,4342.920432,0.00028082,120]
[423381295,1780069479000,-300.0,0.00010496,2]
[423381296,1780069503000,500.0,0.00028,120]
[423381297,1780069511000,500.0,0.00028,120]
[423381298,1780069513000,500.0,0.00028,120]
[423381299,1780069515000,500.0,0.00028,120]
[423381300,1780069532000,-255.0,0.00010495,2]
[423381301,1780069537000,500.0,0.00028,120]
[423381302,1780069553000,-255.0,0.00010495,2]
[423381303,1780069574000,-431.23146498,0.00010495,2]
[423381304,1780069595000,-258.76853502,0.00010495,2]
[423381306,1780069603000,-94.74820929,0.00010495,2]
[423381305,1780069603000,-150.0,0.00010495,2]
[423381307,1780069626000,-300.0,0.00010399,2]
[423381308,1780069626000,-234.95939212,0.000104,2]
[423381309,1780069641000,-1680.0,0.000104,2]
[423381311,1780069660000,1400.0,9.9e-05,3]
[423381310,1780069660000,-1680.0,0.000104,2]
[423381312,1780069661000,2900.0,0.0001,3]
[423381313,1780069662000,4300.0,0.000107,3]
[423381315,1780069663000,7300.0,0.000109,3]
[423381314,1780069663000,5800.0,0.000108,3]
[423381317,1780069730000,-150.0,0.00010389,2]
[423381319,1780069734000,311.27,0.00023,120]
[423381318,1780069734000,358.38,0.00028082,120]
[423381320,1780069735000,238.61,0.00022,120]
[423381321,1780069775000,1000.0,0.00027397,120]
[423381322,1780069828000,2062.0,0.00028069,120]
[423381379,1780069832000,-836.38742294,9.737e-05,2]
[423381382,1780069832000,-318.06383198,9.737e-05,2]
[423381388,1780069832000,-4400.05,9.859e-05,2]
[423381390,1780069832000,-500.0,9.883e-05,2]
[423381392,1780069832000,-3439.77499168,0.000102,2]
[423381394,1780069832000,-500.0,0.00010289,2]
[423381393,1780069832000,-500.0,0.00010289,2]
[423381386,1780069832000,-939.25874508,9.737e-05,2]
[423381406,1780069833000,-3756.4120609,0.0001029,2]
[423381395,1780069833000,-634.29490827,0.00010289,2]
[423381396,1780069833000,-415.59412082,0.00010289,2]
[423381398,1780069833000,-163186.24768848,0.0001029,2]
[423381400,1780069833000,-694.67198536,0.0001029,2]
[423381402,1780069833000,-470.40422208,0.0001029,2]
[423381414,1780069833000,-2287.51677326,0.0001029,2]
[423381418,1780069833000,-1081.52417762,0.0001029,2]
[423381410,1780069833000,-1475.24694905,0.0001029,2]
[423381412,1780069833000,-31325.7890342,0.0001029,2]
[423381415,1780069833000,-1079.96336635,0.0001029,2]
[423381422,1780069833000,-7301.31895632,0.0001029,2]
[423381419,1780069833000,-303.72702952,0.0001029,2]
[423381425,1780069833000,-560.16654688,0.0001029,2]
[423381429,1780069833000,-11183.08269664,0.0001029,2]
[423381531,1780069838000,-312.50730124,9.858e-05,2]
[423381570,1780069841000,-24447.21791334,0.0001029,2]
[423381568,1780069841000,-500.0,9.858e-05,2]
[423381569,1780069841000,-500.0,9.858e-05,2]
[423381567,1780069841000,-500.0,9.858e-05,2]
[423381563,1780069841000,-500.0,9.858e-05,2]
[423381566,1780069841000,-500.0,9.858e-05,2]
[423381571,1780069841000,-1000.0,0.00010388,2]
[423381562,1780069841000,-500.0,9.858e-05,2]
[423381561,1780069841000,-500.0,9.858e-05,2]
[423381565,1780069841000,-500.0,9.858e-05,2]
[423381572,1780069841000,-600.0,0.00010388,2]
[423381578,1780069841000,-482.73968472,0.00010395,2]
[423381574,1780069841000,-1200.0,0.00010388,2]
[423381575,1780069841000,-300.0,0.00010388,2]
[423381579,1780069841000,-1496405.04060788,0.000104,2]
[423381577,1780069841000,-180.01454122,0.0001039,2]
[423381580,1780069841000,-99247.4585,0.000104,2]
[423381581,1780069841000,-2184.58596145,0.000105,2]
[423381582,1780069841000,-2500.0,0.000105,2]
[423381584,1780069841000,-528.39647788,0.000105,2]
[423381583,1780069841000,-5000.0,0.000105,2]
[423381585,1780069841000,-177.0,0.00010503,2]
[423381560,1780069841000,-500.0,9.858e-05,2]
[423381576,1780069841000,-55122.52148143,0.0001039,2]
[423381564,1780069841000,-439.25050627,9.858e-05,2]
[423381537,1780069841000,-500.0,9.858e-05,2]
[423381558,1780069841000,-500.0,9.858e-05,2]
[423381586,1780069841000,-9999.99,0.00010503,2]
[423381535,1780069841000,-187.49269876,9.858e-05,2]
[423381536,1780069841000,-262.67045814,9.858e-05,2]
[423381541,1780069841000,-500.0,9.858e-05,2]
[423381540,1780069841000,-493.25189611,9.858e-05,2]
[423381538,1780069841000,-500.0,9.858e-05,2]
[423381543,1780069841000,-500.0,9.858e-05,2]
[423381542,1780069841000,-500.0,9.858e-05,2]
[423381539,1780069841000,-500.0,9.858e-05,2]
[423381546,1780069841000,-500.0,9.858e-05,2]
[423381544,1780069841000,-224.42204716,9.858e-05,2]
[423381549,1780069841000,-250.03329864,9.858e-05,2]
[423381545,1780069841000,-275.57795284,9.858e-05,2]
[423381547,1780069841000,-500.0,9.858e-05,2]
[423381548,1780069841000,-500.0,9.858e-05,2]
[423381550,1780069841000,-249.96670136,9.858e-05,2]
[423381554,1780069841000,-500.0,9.858e-05,2]
[423381553,1780069841000,-500.0,9.858e-05,2]
[423381555,1780069841000,-500.0,9.858e-05,2]
[423381557,1780069841000,-500.0,9.858e-05,2]
[423381552,1780069841000,-500.0,9.858e-05,2]
[423381556,1780069841000,-500.0,9.858e-05,2]
[423381551,1780069841000,-500.0,9.858e-05,2]
[423381559,1780069841000,-500.0,9.858e-05,2]
[423381587,1780069841000,-9999.99,0.00010503,2]
[423381573,1780069841000,-300.0,0.00010388,2]
[423381588,1780069841000,-2000.0,0.00010562,2]
[423381621,1780069841000,-8152.0,0.0001092,2]
[423381623,1780069841000,-177.0,0.00011023,2]
[423381625,1780069841000,-1549.71,0.00011042,2]
[423381627,1780069841000,-3659.4,0.00011084,2]
[423381626,1780069841000,-154.77,0.00011042,2]
[423381629,1780069841000,-4124.0,0.00011105,2]
[423381630,1780069841000,-449.96379392,0.00011109,2]
[423381631,1780069841000,-6845.0,0.00011127,2]
[423381628,1780069841000,-11251.57682419,0.00011099,2]
[423381633,1780069841000,-3904.0,0.0001122,2]
[423381632,1780069841000,-177.0,0.00011127,2]
[423381622,1780069841000,-1465.0,0.00010926,2]
[423381634,1780069841000,-177.0,0.00011231,2]
[423381636,1780069841000,-160.0,0.00011398,2]
[423381637,1780069841000,-255.0,0.00011407,2]
[423381638,1780069841000,-420.0,0.00011422,2]
[423381640,1780069841000,-1680.0,0.00011427,2]
[423381641,1780069841000,-250.0,0.00011428,2]
[423381643,1780069841000,-178.0,0.00011439,2]
[423381642,1780069841000,-250.0,0.00011439,2]
[423381645,1780069841000,-1852.42,0.00011683,2]
[423381644,1780069841000,-2971.79,0.00011597,2]
[423381646,1780069841000,-1266.0,0.00011781,2]
[423381647,1780069841000,-2000.0,0.00011801,2]
[423381635,1780069841000,-177.0,0.00011335,2]
[423381624,1780069841000,-500.0,0.00011042,2]
[423381590,1780069841000,-2000.0,0.00010562,2]
[423381618,1780069841000,-1000.0,0.00010899,2]
[423381620,1780069841000,-177.0,0.00010919,2]
[423381589,1780069841000,-2000.0,0.00010562,2]
[423381592,1780069841000,-171.39,0.00010562,2]
[423381591,1780069841000,-2000.0,0.00010562,2]
[423381593,1780069841000,-235.01,0.00010562,2]
[423381594,1780069841000,-205.46,0.00010562,2]
[423381599,1780069841000,-206.4800394,0.00010577,2]
[423381601,1780069841000,-150.0,0.00010599,2]
[423381598,1780069841000,-1404.75,0.00010569,2]
[423381604,1780069841000,-2000.0,0.000106,2]
[423381648,1780069841000,-200.0,0.00011806,2]
[423381603,1780069841000,-33230.1787,0.000106,2]
[423381595,1780069841000,-2000.0,0.00010569,2]
[423381605,1780069841000,-177.0,0.00010607,2]
[423381619,1780069841000,-7926.62516294,0.000109,2]
[423381606,1780069841000,-209.09056759,0.0001064,2]
[423381616,1780069841000,-1542.65216393,0.0001081,2]
[423381617,1780069841000,-177.0,0.00010815,2]
[423381614,1780069841000,-1367.0,0.00010754,2]
[423381615,1780069841000,-1684.0,0.00010776,2]
[423381613,1780069841000,-177.0,0.00010711,2]